Cogmind - Beta 11 @@@ ROGUE MODE // 2022.04.16 @ 20:58:38 Player: Awoo-Bot Result: Destroyed by G-47 Trooper with Particle Gun Performance ------------- Evolutions (2) 1000 Regions Visited (6) 1200 Robots Destroyed (81) 405 Value Destroyed (2742) 2742 Prototype IDs (4) 80 Alien Tech Used (0) 0 Bonus (1292) 1292 TOTAL SCORE: 6719 Bonus ------- High Alert Combat Kills 244 Follower Combat Kills 369 Entered Garrisons 200 Used RIF Installer 500 Friendly Fire -21 Cogmind --------- Core Integrity 0/550 Matter 254/300 Energy 100/100 System Corruption 0% Temperature Cool (9) Movement Core (700) Ox13 Location -8/Materials Parts ------- > --- POWER (1) -------- (None) > --- PROPULSION (2) --- (None) > --- UTILITY (6) ------ High-capacity Storage Unit Advanced Visual Processing Unit Advanced Targeting Computer Experimental Targeting Computer > --- WEAPON (2) ------- Mace > --- INVENTORY (20) --- Cryofiber Web High-capacity Storage Unit Improved Signal Interpreter Improved Light Armor Plating Hardlight Generator Relay Coupler [NC] (25) Relay Coupler [NC] (24) Relay Coupler [Swarmer] (29) Relay Coupler [Sentry] (22) Relay Coupler [Hunter] (16) Rocket Launcher Mini Grenade Launcher Peak State ------------ > --- POWER ------------ Heavy Ion Engine > --- PROPULSION ------- Armored Wheel Armored Wheel > --- UTILITY ---------- High-capacity Storage Unit Advanced Targeting Computer Experimental Targeting Computer Utility Shielding Hardened Medium Armor Plating Improved Light Armor Plating > --- WEAPON ----------- Beam Rifle Heavy Assault Rifle > --- INVENTORY -------- Heavy Ion Engine Armored Wheel High-capacity Storage Unit High-capacity Matter Pod Improved Signal Interpreter Hardlight Generator Relay Coupler [NC] Relay Coupler [NC] Relay Coupler [Swarmer] Relay Coupler [Grunt] Relay Coupler [Sentry] Relay Coupler [Hunter] Autogun Improved Assault Rifle Rocket Launcher Mini Grenade Launcher Datajack Mace [Rating: 32] Favorites ----------- Power Light Ion Engine Engine Light Ion Engine Propulsion Light Treads Treads Light Treads Wheel Armored Wheel Utility High-capacity Storage Unit Device Seismic Detector Storage High-capacity Storage Unit Processor Advanced Targeting Computer Hackware Relay Coupler [Grunt] Protection Improved Light Armor Plating Weapon Light Assault Rifle Energy Gun Beam Rifle Ballistic Gun Light Assault Rifle Ballistic Cannon Light Cannon Launcher Rocket Launcher Special Weapon Enhanced Flamer Impact Weapon Mace Slashing Weapon Axe Special Melee Weapon Datajack Build | -11 -10 -10 -9 -9 -9 -8 ------- Run | Scr Mat Min Mat Sto Gar Mat Slots Evolved 4 | . . . 2 . . 2 Power . | . . . . . . . Propulsion . | . . . . . . . Utility 4 | . . . 2 . . 2 Weapon . | . . . . . . . Parts Attached 81 | 8 5 8 3 30 12 15 Power 6 | 1 . . 1 3 . 1 Engine 6 | 1 . . 1 3 . 1 Core . | . . . . . . . Reactor . | . . . . . . . Propulsion 13 | 2 . 2 . 6 2 1 Treads 9 | 2 . 1 . 6 . . Leg . | . . . . . . . Wheel 4 | . . 1 . . 2 1 Hover . | . . . . . . . Flight . | . . . . . . . Utility 15 | 3 1 1 2 3 1 4 Device 2 | 2 . . . . . . Storage 2 | 1 1 . . . . . Processor 3 | . . . 1 1 . 1 Hackware 1 | . . . . . . 1 Protection 7 | . . 1 1 2 1 2 Artifact . | . . . . . . . Weapon 47 | 2 4 5 . 18 9 9 Energy Gun 5 | . . . . 4 1 . Energy Cannon . | . . . . . . . Ballistic Gun 18 | 2 2 2 . 3 4 5 Ballistic Cannon 5 | . . 1 . 4 . . Launcher 8 | . 2 1 . 1 2 2 Special Weapon 1 | . . 1 . . . . Impact Weapon 7 | . . . . 4 2 1 Slashing Weapon 2 | . . . . 2 . . Piercing Weapon . | . . . . . . . Special Melee Weapon 1 | . . . . . . 1 Unidentified Prototypes 4 | . . . . 4 . . Parts Lost 23 | . . 3 1 2 4 13 Power 2 | . . . . . . 2 Propulsion 7 | . . 1 . 1 2 3 Utility 6 | . . 1 1 1 . 3 Weapon 8 | . . 1 . . 2 5 Highest Loss Streak 7 | . . 3 1 2 2 7 To Critical Strikes . | . . . . . . . Average Slot Usage (%) 99 | . 100 100 99 98 99 95 Engine 11 | . 14 14 11 11 11 8 Treads 19 | . 28 20 22 21 11 . Wheel 4 | . . 7 . . 10 16 Device 2 | . 14 4 . . . . Storage 11 | . 14 14 11 11 11 9 Processor 12 | . . . 11 18 22 25 Protection 11 | . . 9 21 13 11 18 Energy Gun 5 | . . . . 9 11 3 Ballistic Gun 12 | . 27 18 11 4 9 11 Ballistic Cannon 5 | . . 9 11 5 . . Naked Turns . | . . . . . . . Heaviest Build 66 | 11 46 53 51 57 62 66 Greatest Support 43 | 40 40 40 40 43 43 24 Greatest Overweight (x) 14 | . 1 3 1 2 4 14 Average Overweight (x) 1 | . . 2 1 1 2 2 Largest Inventory Capacity 20 | 8 20 20 20 20 20 20 Average Capacity 18 | 7 12 20 20 20 20 20 Most Carried 20 | 4 11 20 20 20 20 20 Average Carried 15 | 3 7 13 17 18 18 18 Final Capacity 20 | 8 20 20 20 20 20 20 Final Carried 20 | 4 11 20 20 20 20 12 Class Distribution -------------------- 79% | Mutant 11% | Scavenger-Mutant 5% | Bothacker-Mutant 3% | Commander-Mutant Dominant Class ---------------- Mutant | -10/Materials Mutant | -10/Mines Mutant | -9/Materials Mutant | -9/Storage Mutant | -9/Garrison Bothacker-Mutant | -8/Materials Resources | -11 -10 -10 -9 -9 -9 -8 ----------- Run | Scr Mat Min Mat Sto Gar Mat Matter Collected 2056 | 312 16 227 127 737 271 366 Remotely 171 | 171 . . . . . . Salvage Created 2506 | 185 128 83 122 935 741 312 Parts 142 | 12 11 3 4 49 50 13 Haulers Intercepted . | . . . . . . . Recyclers Shooed 5 | . 1 . . 4 . . Parts Field Recycled . | . . . . . . . Retrieved Matter . | . . . . . . . Parts Self-Destructed . | . . . . . . . Prevented . | . . . . . . . Kills | -11 -10 -10 -9 -9 -9 -8 ------- Run | Scr Mat Min Mat Sto Gar Mat Combat Hostiles Destroyed 62 | . 5 2 1 21 26 7 Guns 35 | . 1 . . 14 17 3 Cannons 10 | . . 2 1 7 . . AOE 16 | . 4 . . . 9 3 Classes Destroyed 11 | 3 2 . 1 2 1 2 Worker 5 | 2 . . . 2 . 1 Builder 2 | . . . . . . 2 Tunneler 3 | 3 . . . . . . Recycler 4 | 1 . . 1 1 . 1 Operator 2 | . . . . 2 . . Watcher 3 | . 1 . . 1 . 1 Swarmer 10 | . . . . 3 7 . Grunt 37 | . 5 2 . 7 18 5 Brawler 1 | . . . . . . 1 Duelist 1 | . . . . . 1 . Sentry 13 | . . . 1 11 . 1 Best Kill Streak 8 | 4 2 2 1 4 7 8 Combat Bots Only 7 | . 2 2 1 3 7 3 Max Kills in Single Turn 3 | 1 1 1 1 2 1 3 Gunslinging . | . . . . . . . Exploded 1 | . 1 . . . 1 1 Melee . | . . . . . . . Uniques/NPCs Destroyed . | . . . . . . . Combat | -11 -10 -10 -9 -9 -9 -8 -------- Run | Scr Mat Min Mat Sto Gar Mat Damage Taken 5086 | . 206 518 124 1554 721 1963 Core 1056 | . 37 80 16 260 111 552 Absorbed by Shields 101 | . . . . . 101 . Redirected to Shielding 138 | . . . 4 60 22 52 Core Remaining (%) 52 | 100 . 53 . . 3 . Volleys Fired 221 | 16 21 15 7 78 53 31 Largest 2 | 2 2 2 2 2 2 2 Hottest 91 | 40 40 55 55 91 79 79 Shots Fired 411 | 32 34 27 14 155 91 58 Gun 322 | 32 26 22 7 107 79 49 Cannon 58 | . . 3 7 48 . . Launcher 31 | . 8 2 . . 12 9 Special . | . . . . . . . Kinetic 259 | 32 26 25 14 78 38 46 Thermal 121 | . . . . 77 41 3 Explosive 31 | . 8 2 . . 12 9 Electromagnetic . | . . . . . . . Robot Hit Streak 29 | 6 3 7 8 19 28 29 Robot Miss Streak 4 | 2 4 3 1 2 3 3 Penetration Max . | . . . . . . . Secondary Targets 4 | . . . . 1 2 1 Max Gunslinging Chain 1 | . . . . 1 1 1 Shots Hit Robots 313 | 21 16 20 10 126 66 54 Core Hits 142 | 11 15 7 4 42 37 26 Critical Kills . | . . . . . . . Critical Parts Destroyed . | . . . . . . . Critical Strikes 18 | . . . 1 7 6 4 Burn 14 | . . . . 5 6 3 Destroy 1 | . . . . . . 1 Blast 3 | . . . 1 2 . . Melee Attacks 23 | . . . . 14 8 1 Impact 19 | . . . . 11 8 . Slashing 3 | . . . . 3 . . Piercing . | . . . . . . . Sneak Attacks . | . . . . . . . Combat Hostiles . | . . . . . . . Follow-up Attacks . | . . . . . . . Damage Inflicted 6194 | 170 564 219 146 1975 1573 1547 Guns 3389 | 170 107 119 42 1325 948 678 Cannons 809 | . . 55 104 650 . . Explosions 1988 | . 457 37 . . 625 869 Melee . | . . . . . . . Ramming 8 | . . 8 . . . . Kinetic 2683 | 170 107 174 146 1037 415 634 Thermal 1515 | . . . . 938 533 44 Explosive 1988 | . 457 37 . . 625 869 Electromagnetic . | . . . . . . . Impact . | . . . . . . . Slashing . | . . . . . . . Piercing . | . . . . . . . Highest Corruption . | . . . . . . . Average Corruption . | . . . . . . . Corruption Purged . | . . . . . . . Corruption Blocked . | . . . . . . . Overload Shots . | . . . . . . . Overflow Damage 43 | . . . . . 20 23 Projectiles . | . . . . . . . Explosions 43 | . . . . . 20 23 Melee . | . . . . . . . Knockbacks 10 | . . . . 10 . . Impact . | . . . . . . . Kinetic 7 | . . . . 7 . . Secondary 3 | . . . . 3 . . Self-Inflicted Damage 84 | . 14 4 . . 66 . Shots 3 | . 1 . . . 2 . Rammed 1 | . . 1 . . . . Targets Rammed 1 | . . 1 . . . . Kicked . | . . . . . . . Crushed . | . . . . . . . Highest Temperature 204 | . 10 54 24 204 192 172 Average Temperature 59 | . 4 16 9 69 64 51 Received Heat Transfer 2214 | . 108 237 33 537 282 1017 Siege Activations . | . . . . . . . Robots Corrupted . | . . . . . . . Combat Hostiles . | . . . . . . . Parts Fried . | . . . . . . . Impact Corruptions . | . . . . . . . Robots Melted 1 | . . . . . . 1 Combat Hostiles 1 | . . . . . . 1 Parts Melted 12 | . . . . 8 4 . Heat Transferred 4690 | . . . . 2775 1582 333 Parts Sabotaged . | . . . . . . . Parts Stolen . | . . . . . . . Parts Stripped . | . . . . . . . Power Chain Reactions . | . . . . . . . Missiles Intercepted . | . . . . . . . Alert | -11 -10 -10 -9 -9 -9 -8 ------- Run | Scr Mat Min Mat Sto Gar Mat Peak Influence 1025 | 30 263 65 133 303 1025 721 Initial 499 | . 19 . . 55 144 499 Average 199 | 12 71 20 27 176 580 590 Maximum Alert Level 3 | . 1 . . 1 3 3 Low Security (%) 67 | 100 94 100 100 60 14 . Level 1 17 | . 5 . . 39 20 . Level 2 7 | . . . . . 25 80 Level 3 7 | . . . . . 40 19 Level 4 . | . . . . . . . Level 5 . | . . . . . . . High Security . | . . . . . . . Max Security . | . . . . . . . Squads Dispatched 9 | . 2 1 2 2 . 2 Investigation 1 | . . 1 . . . . Extermination . | . . . . . . . Reinforcement 8 | . 2 . 2 2 . 2 Assault . | . . . . . . . Garrison . | . . . . . . . Intercept . | . . . . . . . Searches Triggered . | . . . . . . . Construction Impeded 1 | . . . . . . 1 Haulers Reinforced . | . . . . . . . Active Scanning Responses . | . . . . . . . Cargo Convoy Interrupts . | . . . . . . . Stealth | -11 -10 -10 -9 -9 -9 -8 --------- Run | Scr Mat Min Mat Sto Gar Mat Distress Signals 9 | . 2 . 1 4 . 2 Communications Jammed . | . . . . . . . Distress Signals . | . . . . . . . Times Spotted 104 | . 12 4 14 27 30 17 Peak Tracking Total 7 | . 4 2 6 4 7 7 Tactical Retreats 3 | . 1 . 1 . 1 . Traps | -11 -10 -10 -9 -9 -9 -8 ------- Run | Scr Mat Min Mat Sto Gar Mat Traps Triggered 8 | . . 1 . 1 6 . Indirectly . | . . . . . . . Trap Hack Attempts . | . . . . . . . Triggered . | . . . . . . . Disarmed . | . . . . . . . Reprogrammed . | . . . . . . . Reused . | . . . . . . . Traps Extracted . | . . . . . . . Installed . | . . . . . . . Triggered . | . . . . . . . Machines | -11 -10 -10 -9 -9 -9 -8 ---------- Run | Scr Mat Min Mat Sto Gar Mat Machines Disabled 7 | . . . . 5 2 . Max in Single Turn 1 | . . . . 1 1 . Garrison Relay 2 | . . . . . 2 . Machines Sabotaged . | . . . . . . . Garrisons Compromised . | . . . . . . . Overloaded Fab Kills . | . . . . . . . Hacking | -11 -10 -10 -9 -9 -9 -8 --------- Run | Scr Mat Min Mat Sto Gar Mat Machines Accessed 11 | . 1 2 1 5 . 2 Terminals 7 | . 1 . 1 3 . 2 Fabricators . | . . . . . . . Repair Stations . | . . . . . . . Recycling Units 1 | . . . . 1 . . Scanalyzers . | . . . . . . . Garrison Access 1 | . . . . 1 . . Total Hacks 15 | . 3 2 2 5 . 3 Successful 12 | . 2 2 1 5 . 2 Failed 3 | . 1 . 1 . . 1 Catastrophic 1 | . . . 1 . . . Database Lockouts . | . . . . . . . Manual 10 | . 3 . 2 2 . 3 Terminals 11 | . 3 . 2 3 . 3 Fabricators . | . . . . . . . Repair Stations . | . . . . . . . Recycling Units 1 | . . . . 1 . . Scanalyzers . | . . . . . . . Garrison Access 1 | . . . . 1 . . Terminal Hacks 5 | . 1 2 . 2 . . Open Door 4 | . . 2 . 2 . . Unreport Threat 1 | . 1 . . . . . Fabricator Hacks . | . . . . . . . Repair Station Hacks . | . . . . . . . Recycling Unit Hacks 1 | . . . . 1 . . Retrieve Components 1 | . . . . 1 . . Scanalyzer . | . . . . . . . Garrison Access Hacks 1 | . . . . 1 . . Unlock Access 1 | . . . . 1 . . Unauthorized Hacks 5 | . 1 . 1 1 . 2 Terminals 5 | . 1 . 1 1 . 2 Botnet 5 | . 1 . 1 1 . 2 Fabricators . | . . . . . . . Repair Stations . | . . . . . . . Recycling Units . | . . . . . . . Scanalyzers . | . . . . . . . Garrison Access . | . . . . . . . Data Cores Recovered . | . . . . . . . Used . | . . . . . . . Hacking Detections 5 | . 1 . 1 2 . 1 Full Trace Events . | . . . . . . . Feedback Events . | . . . . . . . Feedback Blocked . | . . . . . . . Robot Schematics Acquired . | . . . . . . . Robots Built . | . . . . . . . Authchips . | . . . . . . . Time . | . . . . . . . Total Robot Build Rating . | . . . . . . . Part Schematics Acquired . | . . . . . . . Parts Built . | . . . . . . . Authchips . | . . . . . . . Time . | . . . . . . . Total Part Build Rating . | . . . . . . . Parts Repaired . | . . . . . . . Time . | . . . . . . . Parts Recycled . | . . . . . . . Recycled Matter . | . . . . . . . Retrieved Matter . | . . . . . . . Retrieved Components 8 | . . . . 8 . . Parts Scanalyzed . | . . . . . . . Part Schematics Acquired . | . . . . . . . Parts Damaged . | . . . . . . . Bothacking | -11 -10 -10 -9 -9 -9 -8 ------------ Run | Scr Mat Min Mat Sto Gar Mat Used RIF Installer 1 | . . . . . 1 . Robots Hacked 1 | . . . . . . 1 Non-combat . | . . . . . . . Combat 1 | . . . . . . 1 Robot Hacks Applied 1 | . . . . . . 1 formatsys_high 1 | . . . . . . 1 Relay Couplers Released 8 | . . . . . 8 . Machine Destruction 8 | . . . . . 8 . Attached 1 | . . . . . . 1 Fabnet Peak Effective % . | . . . . . . . Robots Rewired . | . . . . . . . Allies Hacked . | . . . . . . . Hacks Repelled . | . . . . . . . Allies | -11 -10 -10 -9 -9 -9 -8 -------- Run | Scr Mat Min Mat Sto Gar Mat Total Allies 15 | . . 4 . 10 . 1 Largest Group 10 | . . 4 3 10 9 1 Highest-Rated Group 88 | . . 71 40 88 80 16 Highest-Rated Ally 31 | . . 31 16 16 16 16 Total Orders 5 | . . 5 . . . . STAY 2 | . . 2 . . . . ROAM 1 | . . 1 . . . . FOLLOW 2 | . . 2 . . . . Ally Attacks 106 | . . 11 28 8 59 . Total Damage 1067 | . . 105 326 61 575 . Kills 18 | . . 3 8 1 6 . Allies Corrupted . | . . . . . . . Allies Melted . | . . . . . . . Intel | -11 -10 -10 -9 -9 -9 -8 ------- Run | Scr Mat Min Mat Sto Gar Mat Robot Analysis Total . | . . . . . . . Derelict Logs Recovered 2 | . . 2 . . . . Drone Launches . | . . . . . . . Drone Recoveries . | . . . . . . . Exploration | -11 -10 -10 -9 -9 -9 -8 ------------- Run | Scr Mat Min Mat Sto Gar Mat Turns Passed 7397 | 214 918 1604 607 2475 1281 298 Spaces Moved 3158 | 102 436 812 235 844 608 121 Core 7 | 6 . . . . . 1 Treads 2087 | 96 436 281 235 844 195 . Legs . | . . . . . . . Wheels 1064 | . . 531 . . 413 120 Hover . | . . . . . . . Flight . | . . . . . . . Fastest Speed 50 | 50 160 145 240 240 120 120 Average Speed 194 | 153 182 177 240 240 163 125 Slowest Speed 750 | 160 240 240 240 320 240 750 Overloaded Moves . | . . . . . . . Propulsion Burnouts . | . . . . . . . Robots Hopped . | . . . . . . . Cave-ins Triggered . | . . . . . . . Exploration Rate (%) 48 | 7 62 95 24 87 51 13 Regions Visited 6 Branch Regions 2 Pre-discovered Areas . | . . . . . . . Known Exits Taken 1 | . . . . 1 . . Unknown Exits Taken 4 | 1 1 1 1 . . . Scrap Searched 1 | . . 1 . . . . Spaces Dug 9 | . . . . . 9 . Terrain Destroyed 124 | . 40 7 . . 33 44 Melee 2 | . . . . . 2 . Projectile . | . . . . . . . AOE 122 | . 40 7 . . 31 44 Terrain Rammed . | . . . . . . . Walls Destroyed . | . . . . . . . Machines Disabled . | . . . . . . . Actions | -11 -10 -10 -9 -9 -9 -8 --------- Run | Scr Mat Min Mat Sto Gar Mat Total 3984 | 130 527 951 267 1109 789 211 Wait 392 | . 56 96 17 116 69 38 Move 3151 | 101 435 811 234 843 606 121 Hop . | . . . . . . . Pick Up 48 | 4 8 15 4 9 6 2 Fast Attach 16 | 8 . 1 . 6 . 1 Attach 25 | . . 5 2 4 5 9 Detach 2 | . . 1 . . . 1 Swap 40 | . 5 2 1 20 7 5 Drop 32 | 1 2 4 2 19 2 2 Fire 221 | 16 21 15 7 78 53 31 Melee 23 | . . . . 14 8 1 Ram 1 | . . 1 . . . . Kick . | . . . . . . . Crush . | . . . . . . . Escape Stasis 33 | . . . . . 33 . Rewire . | . . . . . . . Trap . | . . . . . . . Miscellaneous . | . . . . . . . Route ------- -11/Scrapyard -10/Materials (discovered 2 exits: *Mat / *Min) -10/Mines (discovered 3 exits: *Mat x2 / [*Exi]) -9/Materials (discovered 3 exits: *Mat / [*Min] / *Sto) -9/Storage (discovered 3 exits: *Mat / Rec / Gar) -9/Garrison -8/Materials History --------- Turn | Location | Event 8 | -11/Scrapyard | Discovered new exit (range 14) 215 | -11/Scrapyard | Entered Materials 311 | -10/Materials | Build established: Mutant 962 | -10/Materials | Discovered new exit (range 4) 1017 | -10/Materials | Discovered new exit (range 12) 1133 | -10/Materials | Entered Mines 1137 | -10/Mines | Met a Derelict who couldn't figure out how to use a Trap Extractor 1353 | -10/Mines | Learned Materials emergency access door positions 1420 | -10/Mines | Discovered new exit (range 16) 1524 | -10/Mines | A weapon hastily lodged in a ceiling crevice suddenly fell to the ground 1616 | -10/Mines | Deemed a non-threat by the Exiles lab entrance 1616 | -10/Mines | Discovered new exit (range 5) 1691 | -10/Mines | Lost 3 parts (1n1u1w) 1734 | -10/Mines | Received a Mining Laser from a helpful Derelict 1766 | -10/Mines | Received a Rocket Launcher from a helpful Derelict 1799 | -10/Mines | Assisted by bots powering up and referring to "LRC-V3" 2172 | -10/Mines | Discovered new exit (range 5) 2257 | -10/Mines | Met a Derelict shopkeep closing up shop 2506 | -10/Mines | Joined a pair of Derelicts in attacking an 0b10 outpost 2737 | -10/Mines | Entered Materials 2737 | -9/Materials | Accompanied by 3 allies 2737 | -9/Materials | Evolved 2 slots: Utility x2 2983 | -9/Materials | Discovered new exit (range 7) 3070 | -9/Materials | Discovered new exit (range 11) 3271 | -9/Materials | Discovered new exit (range 13) 3344 | -9/Materials | Entered Storage 3345 | -9/Storage | Identified exit to Recycling 4021 | -9/Storage | Found Prototype Processor 4021 | -9/Storage | Identified Exp. Targeting Computer 4175 | -9/Storage | Build established: Scavenger-Mutant 4438 | -9/Storage | Discovered new exit (range 15) 5120 | -9/Storage | Build established: Mutant 5284 | -9/Storage | Core integrity fell below 50% 5558 | -9/Storage | Assisted by bots powering up and referring to "LRC-V3" 5816 | -9/Storage | Identified exit to Garrison 5819 | -9/Storage | Entered Garrison 5819 | -9/Garrison | Accompanied by 9 allies 5938 | -9/Garrison | Triggered checkpoint 6152 | -9/Garrison | Triggered checkpoint 6172 | -9/Garrison | Triggered checkpoint 6242 | -9/Garrison | Triggered checkpoint 6425 | -9/Garrison | Triggered checkpoint 6432 | -9/Garrison | Core integrity fell below 20% 6458 | -9/Garrison | Destroyed 7 combat bots 6508 | -9/Garrison | Discovered new exit (range 15) 6541 | -9/Garrison | Installed Relay Interface Framework 6586 | -9/Garrison | Triggered checkpoint 6685 | -9/Garrison | Garrison Relay disabled 6796 | -9/Garrison | Triggered checkpoint 6972 | -9/Garrison | Garrison Relay disabled 7100 | -9/Garrison | Entered Materials 7100 | -8/Materials | Evolved 2 slots: Utility x2 7268 | -8/Materials | Build established: Bothacker-Mutant 7370 | -8/Materials | Core integrity fell below 50% 7385 | -8/Materials | Lost 7 parts (1p2n1u3w) 7395 | -8/Materials | Core integrity fell below 20% 7398 | -8/Materials | Destroyed by G-47 Trooper with Particle Gun Last Messages --------------- 07377_ Destroyed Lgt. Nuclear Core. 07377_ G-47 Trooper destroyed. 07377_ K-01 Serf collects debris. 07383_ The unstable cave ceiling collapses. 07385_ Arm. Wheel destroyed. 07386_ K-01 Serf collects debris. 07386_ G-47 Trooper destroyed. 07388_ Hpw. Shotgun destroyed. 07389_ K-01 Serf collects debris. 07390_ Imp. Assault Rifle destroyed. 07391_ Hvy. Ion Engine destroyed. 07392_ Acquired 57 matter. 07392_ K-01 Serf collects debris. 07393_ U-05 Engineer lays Concrete. 07393_ Utility Shielding destroyed. 07394_ The unstable cave ceiling collapses. 07394_ Relay Coupler [Grunt] destroyed. 07394_ U-05 Engineer lays Concrete. 07395_ U-05 Engineer builds a Wall. 07397_ K-01 Serf collects debris. Map ----- +----------------------------------------------------+ | ?????????????????????????????????????????????????? | | ?????????????????????????????????????????????????? | | ?????????????????????????????????????????????????? | | ?????????????????????????????????????????????????? | | ??????????????????????? ????????????????????????? | | ?????????????????????# ????????????????????????? | | ??????????????????#??# ????????????????????????? | | ???????????????? ?# ?##???##????????????????? | | ????????????? ?# ? ]]????????????????? | | ?????????????? !!! + ? """ ] ????????????????? | | ??????????????? !!! # # "T" ?????????????????? | | ??????????????? !!! # " " ?????????????????? | | ???????????????? ??????????????????? | | ????????????????? # "??????????????????? | | ?????????????????? a ???????????????????? | | ??????????????????# ## g# ???????????????????? | | ??????????????????# ## u ] ????????????????????? | | ??????????????????# ##kg ????????????????????? | | ??????????????????# #????????????????????? | | ???????????????????# # a #????????????????????? | | ???????????????????# a##################??????? | | ???????????????????# % ????? | | ???????????????###### ????? | | ??????# *%= ????? | | ???????????????####### #g######+###?????????????? | | ????????????????????#* g @!#?????????????????????? | | ????????????????????# Y g% #?????????????????????? | | ????????????????????# """ #?????????????????????? | | ????????????????????# """ #?????????????????????? | | ????????????????????# """ #?????????????????????? | | ????????????????????# #?????????????????????? | | ????????????????????#+##+###?????????????????????? | | ????????????????????# #???????????????????????? | | ????????????????????# #???????????????????????? | | ????????????????????# #???????????????????????? | | ????????????????????# #???????????????????????? | | ????????????????????# #???????????????????????? | | ????????????????????# #???????????????????????? | | ??????????########### #???????????????????????? | | ??????????# "T" # #???????????????????????? | | ??????????# """ # ##############??????????? | | ??????????# """ # # #??????????? | | ??????????# """ + # """ #??????????? | | ??????????# # # """ #??????????? | | ??????????# == [ !######## # """ #??????????? | | ??????????# ==! #??????# # #??????????? | | ?????????# =! #??????# # """ #??????????? | | ?????????############??????# # """ #??????????? | | ??????????????############## # """ #??????????? | | ??????????????# ! =# # #??????????? | +----------------------------------------------------+ Best States ------------- Heat Dissipation 31 Energy Generation 14 Energy Capacity 280 Matter Stores 300 Matter Capacity 300 Sight Range 20 Terrain Scan Density 10 Armor Coverage 375 Core Shielding 20 Propulsion Shielding 33 Utility Shielding 33 Evasion (%) 40 Targeting Accuracy 20 Recoil Reduction 2 Relay Coupler Types 1 Relay Coupler Value 9 Item Schematics ----------------- None Robot Schematics ------------------ None Fabricated ------------ Nothing Alien Tech Used ----------------- None Achievements -------------- None Challenges ------------ None Game ------ Seed CompositeTrapStripper Manual? 0 Play Time 00:47:41 Cumulative 66.8 hours Start 2022.04.16 @ 19:53:14 End 2022.04.16 @ 20:58:38 Sessions 1 Manual Loads 0 Difficulty Rogue Special Mode None Game No. 103 Rogue 75 Adventurer 28 Explorer 0 Win Type - Total 0 Types 0/0/0/0/0/0/0/0/0 Lore% 23 Gallery% 31 Achievement% 31 Wizard Run 0 Options --------- ASCII 0 Keyboard 0 Movement Mouse Keybinds 0 Fullscreen 2 Font 24/Terminus Map View 84x54 Tactical HUD 1 Map Filters NONE Filters NONE Steam 1 RUN: 7189f028-d6cc-4f17-b79c-d5e487505101